Cogmind - Beta 16.1 @@@ ROGUE MODE // 2026.03.17 @ 21:26:14 Player: MatMK Result: Destroyed by Y-54 Guardian with Gatling Laser Performance ------------- Evolutions (4) 2000 Regions Visited (5) 1000 Robots Destroyed (54) 270 Value Destroyed (1745) 1745 Prototype IDs (1) 20 Alien Tech Used (0) 0 Bonus (22) 22 TOTAL SCORE: 5057 Bonus ------- High Alert Combat Kills 22 Cogmind --------- Core Integrity 0/850 Matter 36/300 Energy 95/100 System Corruption 8% Temperature Cool (12) Movement Core (1550) Ox30 Location -6/Factory Parts ------- > --- POWER (1) -------- (None) > --- PROPULSION (4) --- (None) > --- UTILITY (7) ------ Huge Storage Unit Enhanced Optical Array Improved Signal Interpreter Improved Utility Shielding Medium Insulated Plating System Shield > --- WEAPON (3) ------- Scythe > --- INVENTORY (25) --- Improved Sensor Array Advanced Terrain Scanner Advanced Terrain Scan Processor Medium Insulated Plating Heavy Assault Rifle Heavy Rocket Launcher Improved Datajack Peak State ------------ > --- POWER ------------ Light Deuterium Engine > --- PROPULSION ------- Armored Huge Wheel Armored Huge Wheel > --- UTILITY ---------- Huge Storage Unit Enhanced Optical Array Improved Sensor Array Improved Signal Interpreter Advanced Targeting Computer Improved Utility Shielding System Shield > --- WEAPON ----------- Proton Cannon Proton Cannon Scythe > --- INVENTORY -------- Deuterium Engine Medium Treads Armored Huge Wheel Armored Huge Wheel Armored Huge Wheel Improved Sensor Array Advanced Terrain Scanner Advanced Terrain Scan Processor Improved Utility Shielding Medium Insulated Plating Medium Insulated Plating Proton Cannon Heavy Assault Rifle Gauss Rifle Flak Gun Gauss Cannon Gauss Cannon Gauss Cannon Grenade Launcher Heavy Rocket Launcher Improved Datajack Katana [Rating: 62] Favorites ----------- Power Ion Engine Engine Ion Engine Power Core Light Nuclear Core Propulsion Armored Huge Wheel Treads Light Treads Leg Aluminum Leg Wheel Armored Huge Wheel Utility Improved Signal Interpreter Device Improved Sensor Array Storage Huge Storage Unit Processor Improved Signal Interpreter Hackware System Shield Protection Improved Utility Shielding Weapon Spread Laser Energy Gun Spread Laser Energy Cannon Proton Cannon Ballistic Gun Enhanced Autogun Ballistic Cannon Gauss Cannon Launcher Grenade Launcher Special Weapon Mining Laser Slashing Weapon Scythe Build | -11 -10 -10 -8 -7 -6 ------- Run | Yrd Mat Sub Mat Fac Fac Slots Evolved 8 | . . . 4 2 2 Power . | . . . . . . Propulsion 2 | . . . 2 . . Utility 5 | . . . 2 1 2 Weapon 1 | . . . . 1 . Parts Attached 63 | 7 4 1 23 7 21 Power 8 | 1 . . 4 1 2 Engine 5 | 1 . . 1 1 2 Core 3 | . . . 3 . . Reactor . | . . . . . . Propulsion 16 | 2 . . 9 . 5 Treads 3 | . . . 2 . 1 Leg 7 | 2 . . 5 . . Wheel 6 | . . . 2 . 4 Hover . | . . . . . . Flight . | . . . . . . Utility 17 | 2 . . 7 3 5 Device 3 | 1 . . 2 . . Storage 3 | 1 . . 1 1 . Processor 4 | . . . 1 1 2 Hackware 1 | . . . . 1 . Protection 6 | . . . 3 . 3 Artifact . | . . . . . . Weapon 22 | 2 4 1 3 3 9 Energy Gun 7 | 1 2 1 2 1 . Energy Cannon 3 | . . . . . 3 Ballistic Gun 5 | 1 . . . 2 2 Ballistic Cannon 3 | . . . . . 3 Launcher 1 | . 1 . . . . Special Weapon 1 | . 1 . . . . Impact Weapon . | . . . . . . Slashing Weapon 2 | . . . 1 . 1 Piercing Weapon . | . . . . . . Special Melee Weapon . | . . . . . . Unidentified Prototypes 1 | . . . . 1 . Parts Lost 33 | . . . 10 2 21 Power 6 | . . . 2 1 3 Propulsion 11 | . . . 5 . 6 Utility 6 | . . . 2 1 3 Weapon 10 | . . . 1 . 9 Highest Loss Streak 12 | . . . 4 1 12 To Critical Strikes 1 | . . . . . 1 Average Backups 14 | 2 7 8 10 21 20 Power 1 | . 1 1 1 3 . Propulsion 2 | . 2 2 . 4 3 Utility 4 | . 1 2 3 5 5 Weapon 5 | 1 3 3 4 6 8 Tool/Special . | . . . . . . Unused Backups 19 | . 2 . 1 5 11 Power 2 | . . . . 1 1 Propulsion 3 | . . . . 2 1 Utility 8 | . 1 . 1 . 6 Weapon 5 | . 1 . . 2 2 Tool/Special 1 | . . . . . 1 Average Slot Usage (%) 87 | . 100 99 83 83 83 Engine 6 | . 14 14 6 2 2 Core 2 | . . . 1 4 3 Treads 1 | . . . 5 . . Leg 10 | . 28 28 13 . . Wheel 8 | . . . 6 15 12 Device 9 | . 14 14 11 7 5 Storage 8 | . 14 14 9 7 6 Processor 10 | . . . 6 11 19 Hackware 3 | . . . . 6 6 Protection 3 | . . . 4 3 6 Energy Gun 10 | . 8 18 13 9 3 Ballistic Gun 3 | . 10 . . 6 6 Launcher 1 | . . 9 1 . . Slashing Weapon 3 | . . . 1 5 5 Peak Build Rating 62 | 7 9 9 40 50 62 Average Rating 34 | 6 7 8 22 48 56 On Entrance 19 | . 7 9 9 40 50 Avg Prop Armor Cover (%) 10 | . . . 13 . 9 Naked Turns . | . . . . . . Heaviest Build 108 | 15 17 17 99 97 108 Greatest Support 56 | 20 20 20 56 56 56 Greatest Overweight (x) 3 | 2 . . 1 1 3 Average Overweight (x) . | . . . . 1 1 Largest Inventory Capacity 25 | 8 8 8 25 25 25 Average Capacity 17 | 7 8 8 13 25 25 Most Carried 25 | 6 8 8 23 25 25 Average Carried 16 | 2 7 7 10 23 22 Final Capacity 25 | 8 8 8 25 25 25 Final Carried 25 | 6 8 8 23 25 7 Class Distribution -------------------- 68% | Mutant 21% | Assassin 4% | Skirmisher 4% | Scavenger-Mutant Dominant Class ---------------- Mutant | -10/Materials Mutant | -10/Subcaves Mutant | -8/Materials Mutant | -7/Factory Assassin | -6/Factory Resources | -11 -10 -10 -8 -7 -6 ----------- Run | Yrd Mat Sub Mat Fac Fac Matter Collected 1195 | 291 . 184 442 155 123 Remotely . | . . . . . . Salvage Created 1449 | 160 29 28 806 252 174 Parts 105 | 14 7 4 54 15 11 Haulers Intercepted . | . . . . . . Recyclers Shooed 2 | 1 . . 1 . . Parts Field Recycled . | . . . . . . Retrieved Matter . | . . . . . . Parts Self-Destructed 6 | . . 6 . . . Prevented . | . . . . . . Parts Restored . | . . . . . . Kills | -11 -10 -10 -8 -7 -6 ------- Run | Yrd Mat Sub Mat Fac Fac Combat Hostiles Destroyed 44 | . 2 3 29 6 4 Melee 1 | . . . . . 1 Guns 36 | . 2 3 23 6 2 Cannons 1 | . . . . . 1 AOE 6 | . . . 6 . . Classes Destroyed 11 | 2 1 . 6 1 1 Tunneler 5 | 5 . . . . . Recycler 2 | 1 . . 1 . . Mechanic 1 | . . . 1 . . Watcher 2 | . . . 1 . 1 Swarmer 15 | . 2 3 10 . . Grunt 17 | . . . 13 4 . Duelist 1 | . . . 1 . . Sentry 5 | . . . 4 . 1 Specialist 1 | . . . . . 1 Hunter 1 | . . . 1 . . Programmer 4 | . . . . 2 2 Best Kill Streak 7 | 6 1 3 7 4 1 Combat Bots Only 5 | . 1 3 5 4 1 Max Kills in Single Turn 2 | 2 1 1 2 1 1 Gunslinging . | . . . . . . Exploded 2 | . . . 2 . . Melee 1 | . . . . . 1 Uniques/NPCs Destroyed . | . . . . . . Combat | -11 -10 -10 -8 -7 -6 -------- Run | Yrd Mat Sub Mat Fac Fac Hostile Shots Fired 612 | . 14 34 122 33 409 Missed 200 | . 5 14 35 10 136 Hits 412 | . 9 20 87 23 273 Melee 1 | . . . . . 1 Projectile 411 | . 9 20 87 23 272 Critical Strikes 16 | . 1 . 4 1 10 Part Disruptions 2 | . . . . . 2 Damage Taken 6111 | . 91 140 1272 605 4003 Core 1141 | . . 52 112 125 852 Absorbed by Shields . | . . . . . . Redirected to Shielding 225 | . . . 52 29 144 Regen/Repaired (Parts) 232 | . . . 66 . 166 Core Remaining (%) 85 | 100 . 79 79 82 . Volleys Fired 133 | 7 18 10 65 15 18 Largest 3 | 2 2 2 2 3 3 Hottest 165 | 60 120 130 165 116 150 Shots Fired 253 | 14 24 20 117 38 40 Gun 193 | 14 13 14 93 38 21 Cannon 16 | . . . . . 16 Launcher 27 | . 2 6 16 . 3 Special 17 | . 9 . 8 . . Kinetic 65 | 7 9 . . 23 26 Thermal 149 | . 11 14 101 15 8 Explosive 27 | . 2 6 16 . 3 Electromagnetic 12 | 7 2 . . . 3 Robot Hit Streak 11 | 6 2 10 11 9 9 Robot Miss Streak 8 | 1 3 3 8 5 3 Penetration Max 1 | . . . . . 1 Secondary Targets . | . . . . . . Shots Hit Robots 153 | 8 3 6 72 28 36 Core Hits 199 | 7 2 7 133 24 26 Critical Kills . | . . . . . . Critical Parts Destroyed . | . . . . . . Critical Strikes 3 | . . . . . 3 Blast 1 | . . . . . 1 Sever 2 | . . . . . 2 Melee Attacks 103 | . . . 6 64 33 Impact . | . . . . . . Slashing 103 | . . . 6 64 33 Piercing . | . . . . . . Sneak Attacks 1 | . . . . 1 . Combat Hostiles . | . . . . . . Follow-up Attacks . | . . . . . . Damage Inflicted 4009 | 112 42 70 1940 565 1280 Guns 2035 | 112 42 70 947 503 361 Cannons 332 | . . . . . 332 Explosions 1340 | . . . 970 . 370 Melee 279 | . . . . 62 217 Ramming 23 | . . . 23 . . Kinetic 848 | 32 42 . . 298 476 Thermal 1382 | . . 70 947 205 160 Explosive 1310 | . . . 970 . 340 Electromagnetic 167 | 80 . . . . 87 Impact . | . . . . . . Slashing 279 | . . . . 62 217 Piercing . | . . . . . . Highest Corruption 8 | . . . 3 7 8 Average Corruption 3 | . . . 2 6 2 Corruption Purged . | . . . . . . Corruption Blocked . | . . . . . . Effects 44 | . . . 15 16 13 Message Errors 5 | . . . 1 . 4 Matter Fused 14 | . . . 6 7 1 Heat Flow Errors 5 | . . . 1 2 2 Energy Discharges 5 | . . . 4 1 . Parts Rejected 1 | . . . 1 . . Data Loss (minor) 6 | . . . . 3 3 Data Loss (major) 4 | . . . 1 2 1 Misfires 1 | . . . 1 . . Alerts 2 | . . . . 1 1 Weapon Failures 1 | . . . . . 1 Overload Shots . | . . . . . . Overflow Damage 53 | . . . 9 22 22 Projectiles . | . . . . . . Explosions 9 | . . . 9 . . Melee 44 | . . . . 22 22 Knockbacks 6 | . . . . . 6 Impact . | . . . . . . Kinetic 3 | . . . . . 3 Secondary 3 | . . . . . 3 Self-Inflicted Damage 113 | . 24 9 68 . 12 Shots 8 | . 1 1 5 . 1 Rammed 1 | . . . 1 . . Targets Rammed 11 | . . . 11 . . Kicked 10 | . . . 10 . . Crushed . | . . . . . . Highest Temperature 376 | . 66 36 376 254 258 Average Temperature 89 | . 18 19 116 65 70 Received Heat Transfer 909 | . . 30 576 117 186 Effects 3 | . . . 3 . . Shutdowns 1 | . . . 1 . . Energy Bleed 1 | . . . 1 . . Short Circuit 1 | . . . 1 . . Siege Activations . | . . . . . . Martial Activations . | . . . . . . Shielding Activations . | . . . . . . Robots Disrupted . | . . . . . . Combat Hostiles . | . . . . . . Robots Corrupted . | . . . . . . Combat Hostiles . | . . . . . . Parts Fried . | . . . . . . Impact Corruptions . | . . . . . . Robots Melted . | . . . . . . Combat Hostiles . | . . . . . . Parts Melted 2 | . . . . . 2 Heat Transferred 2056 | . . 85 1255 407 309 Parts Sabotaged 2 | . . . . . 2 Parts Stolen . | . . . . . . Parts Stripped . | . . . . . . Power Chain Reactions 1 | . . . . . 1 Alert | -11 -10 -10 -8 -7 -6 ------- Run | Yrd Mat Sub Mat Fac Fac Maximum Alert Level 2 | . . . 2 . . Low Security (%) 81 | 100 100 . 32 100 100 Level 1 16 | . . . 60 . . Level 2 2 | . . . 7 . . Level 3 . | . . . . . . Level 4 . | . . . . . . Level 5 . | . . . . . . High Security . | . . . . . . Max Security . | . . . . . . Peak Influence 414 | 10 35 . 414 177 30 Initial 177 | . . . 1 177 . Average 79 | 1 6 . 235 54 2 Influence Increases 1510 | 30 80 120 883 248 149 Destroy 0b10 Robot/C 880 | . 40 60 580 120 80 Destroy 0b10 Robot/NC 50 | 30 . . 15 . 5 Destroy Leader 184 | . . . 132 30 22 Successful Hack 5 | . . . 5 . . Disable Machine 60 | . . . 45 15 . Destroy Structure 181 | . 25 . 76 38 42 Lose Combat Pursuer 150 | . 15 60 30 45 . Influence Decreases 1490 | 30 63 133 497 638 129 Entered New Map 225 | . . 9 3 213 . Time Decay 1105 | 30 63 124 394 405 89 Lost Part 160 | . . . 100 20 40 Squads Dispatched 16 | . . . 7 3 6 Investigation 1 | . . . 1 . . Extermination 4 | . . . . 2 2 Reinforcement 6 | . . . 3 1 2 Assault . | . . . . . . Garrison 5 | . . . 3 . 2 Intercept . | . . . . . . Searches Triggered . | . . . . . . Construction Impeded 3 | . . . 2 1 . Haulers Reinforced . | . . . . . . Active Scanning Responses . | . . . . . . Cargo Convoy Interrupts 1 | . . . . . 1 Stealth | -11 -10 -10 -8 -7 -6 --------- Run | Yrd Mat Sub Mat Fac Fac Distress Signals 7 | . . . 6 . 1 Communications Jammed . | . . . . . . Distress Signals . | . . . . . . Times Spotted 81 | . 5 3 40 9 24 Peak Tracking Total 12 | . 2 3 7 3 12 Tactical Retreats 6 | . 1 2 2 1 . Traps | -11 -10 -10 -8 -7 -6 ------- Run | Yrd Mat Sub Mat Fac Fac Traps Triggered 3 | . . . 2 . 1 Indirectly . | . . . . . . Trap Hack Attempts . | . . . . . . Triggered . | . . . . . . Disarmed . | . . . . . . Reprogrammed . | . . . . . . Reused . | . . . . . . Traps Extracted . | . . . . . . Installed 1 | . . 1 . . . Triggered . | . . . . . . Machines | -11 -10 -10 -8 -7 -6 ---------- Run | Yrd Mat Sub Mat Fac Fac Machines Disabled 4 | . . . 3 1 . Max in Single Turn 1 | . . . 1 1 . Machines Repaired . | . . . . . . Machines Dismantled . | . . . . . . Machines Sabotaged . | . . . . . . Overloaded Fab Kills . | . . . . . . Hacking | -11 -10 -10 -8 -7 -6 --------- Run | Yrd Mat Sub Mat Fac Fac Machines Accessed 11 | . 1 1 3 3 3 Terminals 4 | . 1 . 1 2 . Fabricators 1 | . . . . . 1 Repair Stations 2 | . . . 1 . 1 Recycling Units 1 | . . . . . 1 Scanalyzers 2 | . . . 1 1 . Garrison Access . | . . . . . . Total Hacks 25 | . 1 3 7 4 10 Successful 18 | . . 3 5 2 8 Failed 7 | . 1 . 2 2 2 Catastrophic . | . . . . . . Database Lockouts . | . . . . . . Manual . | . . . . . . Terminals 4 | . 1 . 1 2 . Fabricators 1 | . . . . . 1 Repair Stations 9 | . . . 3 . 6 Recycling Units 3 | . . . . . 3 Scanalyzers 5 | . . . 3 2 . Garrison Access . | . . . . . . Terminal Hacks 6 | . . 3 1 2 . Record 3 | . . 3 . . . Open DSF 1 | . . . . 1 . Alert Level 2 | . . . 1 1 . Fabricator Hacks 1 | . . . . . 1 Network Status 1 | . . . . . 1 Repair Station Hacks 6 | . . . 2 . 4 Scan Component 3 | . . . 1 . 2 Repair 3 | . . . 1 . 2 Recycling Unit Hacks 3 | . . . . . 3 Process 1 | . . . . . 1 Report Inventory 1 | . . . . . 1 Retrieve Matter 1 | . . . . . 1 Scanalyzer 2 | . . . 2 . . Retrieve Study 2 | . . . 2 . . Garrison Access Hacks . | . . . . . . Unauthorized Hacks . | . . . . . . Terminals . | . . . . . . Fabricators . | . . . . . . Repair Stations . | . . . . . . Recycling Units . | . . . . . . Scanalyzers . | . . . . . . Garrison Access . | . . . . . . Data Cores Recovered . | . . . . . . Used . | . . . . . . Hacking Detections 4 | . 1 . 2 1 . Full Trace Events 1 | . . . 1 . . Feedback Events . | . . . . . . Feedback Blocked . | . . . . . . Robot Schematics Acquired . | . . . . . . Robots Built . | . . . . . . Authchips . | . . . . . . Time . | . . . . . . Total Robot Build Rating . | . . . . . . Part Schematics Acquired . | . . . . . . Parts Built . | . . . . . . Authchips . | . . . . . . Time . | . . . . . . Total Part Build Rating . | . . . . . . Part Studies Acquired 2 | . . . 2 . . Parts Repaired 3 | . . . 1 . 2 Time 96 | . . . 26 . 70 Parts Recycled . | . . . . . . Recycled Matter 85 | . . . . . 85 Retrieved Matter 85 | . . . . . 85 Retrieved Components . | . . . . . . Parts Scanalyzed . | . . . . . . Part Schematics Acquired . | . . . . . . Parts Damaged . | . . . . . . Bothacking | -11 -10 -10 -8 -7 -6 ------------ Run | Yrd Mat Sub Mat Fac Fac Used RIF Installer . | . . . . . . Robots Hacked . | . . . . . . Non-combat . | . . . . . . Combat . | . . . . . . Robot Hacks Applied . | . . . . . . Relay Couplers Released . | . . . . . . Fabnet Peak Effective % . | . . . . . . Robots Rewired . | . . . . . . Allies Hacked . | . . . . . . Hacks Repelled . | . . . . . . Allies | -11 -10 -10 -8 -7 -6 -------- Run | Yrd Mat Sub Mat Fac Fac Total Allies . | . . . . . . Largest Group . | . . . . . . Highest-Rated Group . | . . . . . . Highest-Rated Ally . | . . . . . . Total Orders . | . . . . . . Ally Attacks . | . . . . . . Total Damage . | . . . . . . Kills . | . . . . . . Allies Corrupted . | . . . . . . Allies Melted . | . . . . . . Intel | -11 -10 -10 -8 -7 -6 ------- Run | Yrd Mat Sub Mat Fac Fac Active Infowar (turns) 5217 | 72 334 910 1200 1162 1539 Optics 1382 | . . . . . 1382 Sensors 3277 | . . . 745 1162 1370 Structural 206 | . . . 206 . . Seismic 1970 | 72 334 910 654 . . Robot Analysis Total . | . . . . . . Derelict Logs Recovered 1 | . . 1 . . . Drone Launches . | . . . . . . Drone Recoveries . | . . . . . . Exploration | -11 -10 -10 -8 -7 -6 ------------- Run | Yrd Mat Sub Mat Fac Fac Turns Passed 5310 | 165 334 910 1200 1162 1539 Spaces Moved 3104 | 106 208 730 570 704 786 Core 4 | 4 . . . . . Treads 10 | . . . 9 . 1 Legs 1436 | 102 208 730 396 . . Wheels 1654 | . . . 165 704 785 Hover . | . . . . . . Flight . | . . . . . . Fastest Speed 50 | 50 120 120 100 115 115 Average Speed 121 | 119 120 120 121 115 127 Slowest Speed 320 | 190 120 120 190 115 320 Overloaded Moves . | . . . . . . Propulsion Burnouts . | . . . . . . Robots Hopped . | . . . . . . Potential Cave-ins 25 | . . . . 23 2 Cave-ins Triggered 1 | . . . . 1 . Exploration Rate (%) 30 | 4 30 54 43 28 21 Regions Visited 5 Branch Regions 1 Pre-discovered Areas . | . . . . . . Known Exits Taken 2 | . . . 1 1 . Unknown Exits Taken 3 | 1 1 1 . . . Scrap Searched . | . . . . . . Spaces Dug 112 | . 19 . 11 61 21 Terrain Destroyed 259 | . 26 42 84 61 46 Melee 88 | . . . 6 61 21 Projectile 19 | . 9 . 7 . 3 AOE 152 | . 17 42 71 . 22 Terrain Rammed . | . . . . . . Walls Destroyed . | . . . . . . Machines Disabled . | . . . . . . Actions | -11 -10 -10 -8 -7 -6 --------- Run | Yrd Mat Sub Mat Fac Fac Total 4235 | 127 255 744 930 937 1242 Wait 683 | . 5 . 204 116 358 Move 3098 | 105 207 729 569 702 786 Hop . | . . . . . . Pick Up 61 | 7 8 1 22 15 8 Fast Attach 24 | 7 . . 12 . 5 Attach 52 | . 6 1 16 7 22 Detach 18 | . 4 . 8 3 3 Swap 12 | . 1 . 7 3 1 Drop 37 | 1 6 1 10 11 8 Fire 133 | 7 18 10 65 15 18 Melee 103 | . . . 6 64 33 Ram 1 | . . . 1 . . Kick 10 | . . . 10 . . Crush . | . . . . . . Escape Stasis 1 | . . . . 1 . Rewire 1 | . . 1 . . . Trap 1 | . . 1 . . . Miscellaneous . | . . . . . . Route ------- -11/Scrapyard -10/Materials (discovered 2 exits: [*Mat] / *Sub) -10/Subcaves (discovered 2 exits: *Mat x2) -8/Materials -7/Factory -6/Factory History --------- Turn | Location | Event 15 | -11/Scrapyard | Discovered new exit (range 15) 166 | -11/Scrapyard | Entered Materials 300 | -10/Materials | Build established: Mutant 429 | -10/Materials | Discovered new exit (range 16) 494 | -10/Materials | Discovered new exit (range 5) 500 | -10/Materials | Entered Subcaves 568 | -10/Subcaves | Shifting Twisted Machinery released Sub. Monowheel 601 | -10/Subcaves | Shifting Twisted Machinery released Shrapnel Trap 986 | -10/Subcaves | Visited Clippyterm 990 | -10/Subcaves | Learned Factory trap positions 1371 | -10/Subcaves | Discovered new exit (range 14) 1385 | -10/Subcaves | Discovered new exit (range 16) 1410 | -10/Subcaves | Entered Materials 1410 | -8/Materials | Evolved 4 slots: Propulsion x2, Utility x2 1536 | -8/Materials | Repaired Aluminum Leg 1597 | -8/Materials | Garrison activated, responded to threat 1781 | -8/Materials | Lost 4 parts (1p2n1u) 1948 | -8/Materials | Lost 3 parts (1p1n1w) 2603 | -8/Materials | Discovered new exit (range 4) 2609 | -8/Materials | Identified exit to Factory 2610 | -8/Materials | Entered Factory 2610 | -7/Factory | Evolved 2 slots: Utility x1, Weapon x1 2611 | -7/Factory | Loaded intel: 130 trap records 3131 | -7/Factory | Crushed by falling debris 3753 | -7/Factory | Discovered new exit (range 13) 3771 | -7/Factory | Identified exit to Factory 3772 | -7/Factory | Entered another Factory area 3772 | -6/Factory | Evolved 2 slots: Utility x2 4235 | -6/Factory | Build established: Assassin 4797 | -6/Factory | Repaired Grenade Launcher 4842 | -6/Factory | Repaired Flak Gun 5140 | -6/Factory | Cargo convoy interrupted 5158 | -6/Factory | Garrison activated, responded to threat 5181 | -6/Factory | Core integrity fell below 50% 5233 | -6/Factory | Lost 12 parts (2p3n1u6w) 5286 | -6/Factory | Core integrity fell below 20% 5311 | -6/Factory | Destroyed by Y-54 Guardian with Gatling Laser Last Messages --------------- 05279_ Proton Cannon destroyed. 05284_ Arm. Huge Wheel destroyed. 05286_ Imp. Utility Shielding destroyed. 05293_ System corrupted: Component data lost. 05294_ Katana destroyed. 05298_ S-27 Virus destroyed. 05301_ K-01 Serf cleans the Power Conduit. 05302_ Med. Treads destroyed. 05303_ K-01 Serf collects debris. 05303_ X-67 Chaingunner Flexi-carbon Leg severed. 05305_ Arm. Huge Wheel destroyed. 05305_ Adv. Targeting Computer destroyed. 05306_ K-01 Serf collects debris. 05307_ X-67 Chaingunner Hvy. Machine Gun severed. 05308_ M-13 Machinist destroyed. 05309_ Acquired 30 matter. 05309_ K-01 Serf collects debris. 05309_ X-67 Chaingunner destroyed. Map ----- +----------------------------------------------------+ | ?????????????????????????????????????????????????? | | ?????????????????????????????????????????????????? | | ?????????????????????????????????????????????????? | | ?????????????????????????????????????????????????? | | ??????????????????????#???#??????????????????????? | | ?????????????????????? ??? ??????????????????????? | | ?????????????????????? ??? ??????????????????????? | | ?????????????????????? ??? ??????????????????????? | | ?????????????????????? ? ??????????????????????? | | ?????????????????????? ? ??????????????????????? | | ???????????? ????"???" ? "???"??????????????????? | | ?????????"" ?" "?" ? "?" "??????????????????? | | ??????????^ " " " ? " " " " "??????????????? | | ???????????[[ " " " " " " " " "?"????????????? | | ???????????? " " " " " " " " " "????????????? | | ????????????? " " " " " " " " " " ???????????? | | ?????????????? " " " " " " " " " " " ?????????? | | ???????????????# " " " " " " " " " " "??????????? | | ???????????????# " " " " " " " " " "????????????? | | ???????????????# ??????????????? | | ???????????????? ????????????????? | | ?????????????????? ??????????????????? | | ???????????????????? ????????????????????? | | ?????????????????????? ??????????????????????? | | ??????????????????????##+###########?????????????? | | ???# ?????????????????#s=@=s #?????????????? | | ???# ?????????????????# ![=%" """" #?????????????? | | ???# ?????????????????#Yk""" """" #?????????????? | | ??## ###########??????#R """" """" #?????????????? | | ??# ??????#R """" """" #?????????????? | | ??# ??????# #?????????????? | | ??# """ ??????# """" """" #?????????????? | | ### """ ??????# """" """" #?????????????? | | """ !]] ??????# """" """" #?????????????? | | !]] ##????# """" """" #?????????????? | | ]]! ###### #?????????????? | | + "T" = #?????????????? | | ###################?????????????? | | #########+#########???????????????????????? | | # #???????????????????????? | | T# # """"""""" #???????????????????????? | | ?# # #???????????????????????? | | ?# / """"""""" #???????????????????????? | | ?# # #???????????????????????? | | ?# # """"""""" ] #???????????????????????? | | ?# # ]#???????????????????????? | | ?# ###################???????????????????????? | | ?# ########################??????????????????? | | ?# ?????????????????? | | ?# ^ ?????????????????? | +----------------------------------------------------+ Best States ------------- Heat Dissipation 37 Energy Generation 14 Energy Capacity 275 Matter Stores 300 Matter Capacity 300 Sight Range 22 Robot Scan Range 15 Terrain Scan Density 10 Armor Coverage 225 Resistance: EM 20 Utility Shielding 66 Weapon Shielding 66 Evasion (%) 55 Targeting Accuracy 8 Target Analysis 5 Recoil Reduction 2 Defensive Hacking 10 Item Schematics ----------------- None Robot Schematics ------------------ None Fabricated ------------ Nothing Repaired ---------- Aluminum Leg | 26% | -8/Materials Grenade Launcher | 16% | -6/Factory Flak Gun | 17% | -6/Factory Studied --------- Aluminum Leg | -8/Materials | Hacked Imp. Datajack | -8/Materials | Hacked Alien Tech Used ----------------- None Achievements -------------- Construction Begets Destruction Hydra Jackpot Challenges ------------ None Game ------ Seed SmartbombBombardmentFist Manual? 0 Play Time 00:55:29 Cumulative 15.8 hours Start 2026.03.17 @ 20:30:43 End 2026.03.17 @ 21:26:14 Sessions 1 Manual Loads 0 Difficulty Rogue Special Mode None Game No. 30 Rogue 30 Adventurer 0 Explorer 0 Win Type - Total 0 Types 0/0/0/0/0/0/0/0/0/0 Lore% 4 Gallery% 18 Achievement% 14 Wizard Run 0 Options --------- Layout 1 ASCII 0 Keyboard 0 Movement Arrows Keybinds 0 Fullscreen 1 Font 24/Smallcaps Map View 50x35 Zoom Use 0% Tactical HUD 1 Map Filters NONE Filters NONE Steam 1 RUN: b6cb676c-34c6-47af-83b1-5c71ce64ec49